Workbook

Sheet QUOTATION
B1: QUOTATION REQUEST | TEKLİF TALEBİ - AL AMEEN FOR HUMANITARIAN SUPPORT
B2: طلب عرض سعر
C5: PR date | SAT tarihi: | E5: =CONCATENATE('[1]PR FORM'!H8,"-",'[1]PR FORM'!I8,"-",'[1]PR FORM'!J8) -> 15-8-2024 | H5: تاريخ طلب الشراء:
C6: Reference of the PR | SAT'nin referansı: | E6: ='[1]PR FORM'!D$11 -> PR/KS-relief 047/KS-RELIEF1.06/GZT/PRO-HE/15-8-2024/C | H6: الرقم المرجعي لطلب الشراء:
C8: Quotation valid* from ....../......./........... until ....../......./........... Teklif geçerli* tarihinden ....../......./........... tarihine kadar ....../....../…….... | H8: صلاحية عرض السعر* من ....../......./........... إلى ....../......./...........
C10: *Please note that quotation cannot be valid for less than 3 days or more than 30 days. | Teklifin 3 günden az veya 30 günden fazla geçerli olamayacağını lütfen unutmayın. | G10: ملاحظة : عرض السعر يكون غير صالح لمدة أقل من ثلاثة أيام أو أكثر من 30 يوم.
C11: Company | Şirket: | H11: الشركة/المؤسسة:
C12: Representative | Temsilci: | H12: اسم الشخص المسؤول:
C13: Tel: | H13: الهاتف:
C14: Email | E-posta: | H14: البريد الالكتروني:
C15: Address | Adres: | H15: العنوان:
C17: Items | العناصر | E17: Unit | Birim الواحدة | F17: Quantity | Miktar الكمية | G17: ="Unit Price in "&CurrnecyT&" includes taxes and delivery"&" | Birim Fiyata vergiler ve teslimat dahildir"&" | السعر الإفرادي متضمناً الضريبة " -> Unit Price in USD includes taxes and delivery | Birim Fiyata vergiler ve teslimat dahildir | السعر الإفرادي متضمناً الضريبة | H17: ="Total Price in "&CurrnecyT&" includes taxes and delivery "&" | Toplam Fiyata vergiler ve teslimat dahildir"& "| السعر الإجمالي متضمناً الضريبة والتوصيل" -> Total Price in USD includes taxes and delivery | Toplam Fiyata vergiler ve teslimat dahildir| السعر الإجمالي متضمناً الضريبة والتوصيل
B18: 1 | C18: ='[1]PR FORM'!B16 -> خبز | E18: ='[1]PR FORM'!C16 -> ربطة | F18: ='[1]PR FORM'!D16*'[1]PR FORM'!E16 -> 7920
B19: 2 | C19: ='[1]PR FORM'!B17 -> جرة غاز | E19: ='[1]PR FORM'!C17 -> جرة | F19: ='[1]PR FORM'!D17*'[1]PR FORM'!E17 -> 96
B20: 3 | C20: ='[1]PR FORM'!B18 -> زيت زيتون | E20: ='[1]PR FORM'!C18 -> تنكة | F20: ='[1]PR FORM'!D18*'[1]PR FORM'!E18 -> 24
B21: 4 | C21: ='[1]PR FORM'!B19 -> زيتون | E21: ='[1]PR FORM'!C19 -> كغ | F21: ='[1]PR FORM'!D19*'[1]PR FORM'!E19 -> 1200
B22: 5 | C22: ='[1]PR FORM'!B20 -> زعتر | E22: ='[1]PR FORM'!C20 -> كغ | F22: ='[1]PR FORM'!D20*'[1]PR FORM'!E20 -> 240
B23: 6 | C23: ='[1]PR FORM'!B21 -> سكر | E23: ='[1]PR FORM'!C21 -> كغ | F23: ='[1]PR FORM'!D21*'[1]PR FORM'!E21 -> 1200
B24: 7 | C24: ='[1]PR FORM'!B22 -> شاي | E24: ='[1]PR FORM'!C22 -> كغ | F24: ='[1]PR FORM'!D22*'[1]PR FORM'!E22 -> 120
B25: 8 | C25: ='[1]PR FORM'!B23 -> بيض | E25: ='[1]PR FORM'!C23 -> صحن | F25: ='[1]PR FORM'!D23*'[1]PR FORM'!E23 -> 840
B26: 9 | C26: ='[1]PR FORM'!B24 -> حلاوة | E26: ='[1]PR FORM'!C24 -> كغ | F26: ='[1]PR FORM'!D24*'[1]PR FORM'!E24 -> 600
B27: 10 | C27: ='[1]PR FORM'!B25 -> لبنة | E27: ='[1]PR FORM'!C25 -> كغ | F27: ='[1]PR FORM'!D25*'[1]PR FORM'!E25 -> 1200
B28: 11 | C28: ='[1]PR FORM'!B26 -> معكرونة | E28: ='[1]PR FORM'!C26 -> طرد | F28: ='[1]PR FORM'!D26*'[1]PR FORM'!E26 -> 240
B29: 12 | C29: ='[1]PR FORM'!B27 -> سمن نباتي | E29: ='[1]PR FORM'!C27 -> لتر | F29: ='[1]PR FORM'!D27*'[1]PR FORM'!E27 -> 480
B30: 13 | C30: ='[1]PR FORM'!B28 -> كاسات كرتون | E30: ='[1]PR FORM'!C28 -> طرد | F30: ='[1]PR FORM'!D28*'[1]PR FORM'!E28 -> 720
B31: 14 | C31: ='[1]PR FORM'!B29 -> أرز نوع جيد للطبخ | E31: ='[1]PR FORM'!C29 -> كيلو | F31: ='[1]PR FORM'!D29*'[1]PR FORM'!E29 -> 1800
B32: 15 | C32: ='[1]PR FORM'!B30 -> فروج | E32: ='[1]PR FORM'!C30 -> كيلو | F32: ='[1]PR FORM'!D30*'[1]PR FORM'!E30 -> 600
B33: 16 | C33: ='[1]PR FORM'!B31 -> لحم غنم | E33: ='[1]PR FORM'!C31 -> كيلو | F33: ='[1]PR FORM'!D31*'[1]PR FORM'!E31 -> 180
B34: 17 | C34: ='[1]PR FORM'!B32 -> عدس أحمر | E34: ='[1]PR FORM'!C32 -> كيلو | F34: ='[1]PR FORM'!D32*'[1]PR FORM'!E32 -> 240
B35: 18 | C35: ='[1]PR FORM'!B33 -> فاصولياء حب | E35: ='[1]PR FORM'!C33 -> كيلو | F35: ='[1]PR FORM'!D33*'[1]PR FORM'!E33 -> 120
B36: 19 | C36: ='[1]PR FORM'!B34 -> زيت نباتي | E36: ='[1]PR FORM'!C34 -> لتر | F36: ='[1]PR FORM'!D34*'[1]PR FORM'!E34 -> 960
B37: 20 | C37: ='[1]PR FORM'!B35 -> دبس بندورة | E37: ='[1]PR FORM'!C35 -> علبة | F37: ='[1]PR FORM'!D35*'[1]PR FORM'!E35 -> 960
B38: 21 | C38: ='[1]PR FORM'!B36 -> جبن أبيض | E38: ='[1]PR FORM'!C36 -> كيلو | F38: ='[1]PR FORM'!D36*'[1]PR FORM'!E36 -> 600
B39: 22 | C39: ='[1]PR FORM'!B37 -> بطاطا فريش | E39: ='[1]PR FORM'!C37 -> كيلو | F39: ='[1]PR FORM'!D37*'[1]PR FORM'!E37 -> 6000
B40: 23 | C40: ='[1]PR FORM'!B38 -> بندورة فريش | E40: ='[1]PR FORM'!C38 -> كيلو | F40: ='[1]PR FORM'!D38*'[1]PR FORM'!E38 -> 3000
B41: 24 | C41: ='[1]PR FORM'!B39 -> خيار فريش | E41: ='[1]PR FORM'!C39 -> كيلو | F41: ='[1]PR FORM'!D39*'[1]PR FORM'!E39 -> 1200
B42: 25 | C42: ='[1]PR FORM'!B40 -> بصل | E42: ='[1]PR FORM'!C40 -> كيلو | F42: ='[1]PR FORM'!D40*'[1]PR FORM'!E40 -> 960
B43: 26 | C43: ='[1]PR FORM'!B41 -> ثوم | E43: ='[1]PR FORM'!C41 -> كيلو | F43: ='[1]PR FORM'!D41*'[1]PR FORM'!E41 -> 120
B44: 27 | C44: ='[1]PR FORM'!B42 -> باذنجان | E44: ='[1]PR FORM'!C42 -> كيلو | F44: ='[1]PR FORM'!D42*'[1]PR FORM'!E42 -> 480
B45: 28 | C45: ='[1]PR FORM'!B43 -> كوسا | E45: ='[1]PR FORM'!C43 -> كيلو | F45: ='[1]PR FORM'!D43*'[1]PR FORM'!E43 -> 480
B46: 29 | C46: ='[1]PR FORM'!B44 -> تفاح فريش | E46: ='[1]PR FORM'!C44 -> كيلو | F46: ='[1]PR FORM'!D44*'[1]PR FORM'!E44 -> 3600
B47: 30 | C47: ='[1]PR FORM'!B45 -> برتقال | E47: ='[1]PR FORM'!C45 -> كيلو | F47: ='[1]PR FORM'!D45*'[1]PR FORM'!E45 -> 1200
B48: 31 | C48: ='[1]PR FORM'!B46 -> بطيخ أحمر | E48: ='[1]PR FORM'!C46 -> كيلو | F48: ='[1]PR FORM'!D46*'[1]PR FORM'!E46 -> 2400
C49: Total | Toplam | المجموع
B51: Comments/Technical specifications | Yorumlar/Teknik özellikler | التعليقات/المواصفات التقنية
C53: Total price (in letter) | Toplam fiyat (mektupla) | H53: السعر الكلي ( كتابةً) :
C54: Available now | Şu an müsait: | H54: كل العناصر متوفرة:
C55: The requested quantity is entirely available | İstenen miktar tamamen mevcuttur | H55: الكمية المطلوبة متوفرة :
C56: Delivery date | Teslim tarihi | H56: تاريخ التسليم:
C59: Supplier's signature and stamp | Tedarikçinin imzası ve kaşesi: | H59: ختم وتوقيع المورد :
